bitfinex/quotes_BTCUSD_20240918
["timestamp","ask_amount","ask_price","bid_price","bid_amount"]
[1726676729315,0.001,59682.0,59681.0,0.502672]
[1726676729533,0.01923075,59682.0,59681.0,1.2524951]
[1726676729756,0.04839996,59682.0,59681.0,0.9173801]
[1726676729976,0.04839996,59682.0,59681.0,0.2471501]
[1726676730240,0.04839996,59682.0,59681.0,0.5822651]
[1726676731546,0.04739996,59682.0,59681.0,0.5822651]
[1726676731752,0.04839996,59682.0,59681.0,0.9253801]
[1726676732169,0.04739996,59682.0,59681.0,0.5822651]
[1726676732382,0.04739996,59682.0,59681.0,0.0795931]
[1726676732383,0.04746904,59682.0,59681.0,0.0795931]
[1726676732595,0.04746904,59682.0,59681.0,0.5822651]
[1726676732851,0.21502304,59682.0,59681.0,0.0795931]
[1726676733038,0.04746904,59682.0,59681.0,0.0795931]
[1726676733469,0.04746904,59682.0,59681.0,0.2471501]
[1726676733678,0.04846904,59682.0,59681.0,0.2551501]
[1726676733890,0.04846904,59682.0,59681.0,0.5902651]
[1726676734113,0.04746904,59682.0,59681.0,0.9173801]
[1726676734339,0.04846904,59682.0,59681.0,0.9253801]
[1726676735183,0.04746904,59682.0,59681.0,0.9173801]
[1726676735635,0.04846904,59682.0,59681.0,0.9253801]
[1726676736063,0.04846904,59682.0,59681.0,1.2604951]
[1726676736910,0.04746904,59682.0,59681.0,1.2524951]
[1726676737338,0.04846904,59682.0,59681.0,1.2604951]
[1726676738466,0.04846904,59682.0,59681.0,0.9253801]
[1726676738690,0.04846904,59682.0,59681.0,0.0875931]
[1726676738691,0.04858492,59682.0,59681.0,0.0875931]
[1726676738906,0.04858492,59682.0,59681.0,0.008]
[1726676739142,0.37919537,59682.0,59681.0,0.008]
[1726676739394,0.73730437,59682.0,59681.0,0.008]
[1726676739617,1.46224053,59682.0,59681.0,0.008]
[1726676739829,1.40752237,59682.0,59681.0,0.008]
[1726676740249,0.860787,59681.0,59680.0,0.00164]
[1726676740469,1.12614673,59681.0,59680.0,0.00164]
[1726676740687,1.07142837,59681.0,59680.0,0.00164]
[1726676740905,1.12614754,59681.0,59680.0,0.00164]
[1726676741774,1.46126254,59681.0,59680.0,0.00164]
[1726676742030,1.12614754,59681.0,59680.0,0.00164]
[1726676742253,0.0475877,59681.0,59680.0,0.75195633]
[1726676742468,0.0475877,59681.0,59680.0,0.82747092]
[1726676742684,0.0475877,59681.0,59680.0,0.16955459]
[1726676742895,0.37819837,59681.0,59680.0,0.16955459]
[1726676743121,0.21064137,59681.0,59680.0,0.00164]
[1726676743356,0.0475877,59681.0,59680.0,0.1692]
[1726676743570,0.0475877,59681.0,59680.0,0.26898929]
[1726676744412,0.0485877,59681.0,59680.0,0.11242929]
[1726676744624,0.0475877,59681.0,59680.0,0.10142929]
[1726676745038,0.001,59681.0,59680.0,0.10942929]
[1726676745252,0.04895885,59681.0,59680.0,0.27698929]
[1726676745461,0.04895885,59681.0,59680.0,0.10942929]
[1726676745669,0.55163085,59681.0,59680.0,0.10942929]
[1726676745900,0.55163085,59681.0,59680.0,0.00964]
[1726676746354,1.04979952,59681.0,59680.0,0.00964]
[1726676746791,1.10453062,59681.0,59680.0,0.00964]
[1726676747038,1.46264562,59681.0,59680.0,0.00964]
[1726676747894,1.46164562,59681.0,59680.0,0.00164]
[1726676748125,1.07857177,59681.0,59680.0,0.00164]
[1726676748387,1.12686345,59681.0,59680.0,0.00164]
[1726676748607,1.46197845,59681.0,59680.0,0.00164]
[1726676748823,1.12686345,59681.0,59680.0,0.00164]
[1726676749044,1.12688505,59681.0,59680.0,0.00164]
[1726676750353,0.76877005,59681.0,59680.0,0.00164]
[1726676750566,0.43365505,59681.0,59680.0,0.00164]
[1726676750775,0.43365505,59681.0,59680.0,0.01887966]
[1726676750989,0.76877005,59681.0,59680.0,0.01887966]
[1726676751218,1.10388505,59681.0,59680.0,0.01887966]
[1726676751668,1.10388505,59681.0,59680.0,0.00164]
[1726676751882,0.76877005,59681.0,59680.0,0.00164]
[1726676752296,1.10388505,59681.0,59680.0,0.00164]
[1726676754922,1.10366329,59681.0,59680.0,0.00164]
[1726676755557,1.43877829,59681.0,59680.0,0.00164]
[1726676755973,1.46277829,59681.0,59680.0,0.00164]
[1726676756821,1.51296114,59681.0,59680.0,0.00164]
[1726676757030,1.46277829,59681.0,59680.0,0.00164]
[1726676757255,1.53813642,59681.0,59680.0,0.00164]
[1726676757892,1.92349017,59681.0,59680.0,0.00164]
[1726676758138,1.89989329,59681.0,59680.0,0.00164]
[1726676758386,1.85180177,59681.0,59680.0,0.00164]
[1726676758621,2.05079548,59681.0,59680.0,0.00164]
[1726676758855,2.05098767,59681.0,59680.0,0.00164]
[1726676759066,2.41610334,59681.0,59680.0,0.00164]
[1726676759283,2.26434862,59681.0,59680.0,0.00164]
[1726676759708,2.07795035,59681.0,59680.0,0.00164]
[1726676759925,2.10424373,59681.0,59680.0,0.00164]
[1726676760360,1.923527,59681.0,59680.0,0.00164]
[1726676760575,1.43911862,59681.0,59680.0,0.00164]
[1726676760788,1.55257847,59681.0,59680.0,0.00264]
[1726676761043,1.43911862,59681.0,59680.0,0.00164]
[1726676761309,1.1793477,59681.0,59680.0,0.00164]
[1726676761529,0.06243185,59681.0,59680.0,0.66055633]
[1726676761753,0.04843185,59681.0,59680.0,0.72593092]
[1726676761969,0.04843185,59681.0,59680.0,1.06205092]
[1726676761970,0.05543185,59681.0,59680.0,1.06205092]
[1726676762205,0.05543185,59681.0,59680.0,1.49437092]
[1726676762430,0.00164,59686.0,59685.0,1.32805833]
[1726676762656,0.00164,59686.0,59685.0,1.43204217]
[1726676762887,0.00154,59686.0,59685.0,1.43204217]
[1726676763102,0.1,59700.0,59699.0,0.837532]
[1726676763334,0.1,59700.0,59699.0,0.99276833]
[1726676763582,0.1,59700.0,59699.0,1.06966833]
[1726676763812,0.1,59700.0,59699.0,0.89602992]
[1726676764035,0.1,59700.0,59699.0,0.23827459]
[1726676764469,0.1,59700.0,59699.0,0.23388059]
[1726676764687,0.1,59700.0,59699.0,0.56889359]
[1726676764925,0.1,59700.0,59699.0,1.23891959]
[1726676765167,0.101,59700.0,59699.0,1.24991959]
[1726676765808,0.1,59700.0,59699.0,1.23891959]
[1726676766244,0.1,59700.0,59699.0,0.90390659]
[1726676766433,0.1,59700.0,59699.0,0.23388059]
[1726676766907,0.1,59700.0,59699.0,0.90390659]
[1726676767130,0.10164,59700.0,59699.0,0.90390659]
[1726676767599,0.10164,59700.0,59699.0,1.23891959]
[1726676767817,0.10264,59700.0,59699.0,1.25091959]
[1726676768256,0.000821,59714.0,59713.0,0.502402]
[1726676768489,0.000821,59714.0,59713.0,0.78576916]
[1726676768748,0.000821,59714.0,59713.0,1.53533916]
[1726676769628,0.001821,59714.0,59713.0,1.54433916]
[1726676770527,0.001821,59714.0,59713.0,0.6413422]
[1726676770768,0.33233867,59714.0,59713.0,0.0592402]
[1726676770986,0.000821,59714.0,59713.0,0.167467]
[1726676771390,0.000821,59714.0,59713.0,0.512402]
[1726676771639,0.000821,59714.0,59713.0,0.167467]
[1726676771856,0.000821,59714.0,59713.0,0.2512028]
[1726676772078,0.000821,59714.0,59713.0,0.2592028]
[1726676772301,0.000821,59714.0,59713.0,1.48913476]
[1726676772739,0.000821,59714.0,59713.0,1.58593476]
[1726676772955,0.000821,59714.0,59713.0,1.68193476]
[1726676773623,0.000821,59714.0,59713.0,2.01686976]
[1726676773883,0.000821,59714.0,59713.0,1.68193476]
[1726676774324,0.000821,59714.0,59713.0,0.6789378]
[1726676774539,0.000821,59714.0,59713.0,0.92106476]
[1726676774754,0.000821,59714.0,59713.0,1.24699976]
[1726676775177,0.000821,59714.0,59713.0,1.59593476]
[1726676775437,0.000821,59714.0,59713.0,1.24699976]
[1726676775651,0.000821,59714.0,59713.0,1.26099976]
[1726676775870,0.000821,59714.0,59713.0,1.59593476]
[1726676776080,0.000821,59714.0,59713.0,1.58193476]
[1726676776291,0.000821,59714.0,59713.0,1.25899976]
[1726676776760,0.000821,59714.0,59713.0,0.6909378]
[1726676776984,0.000821,59714.0,59713.0,0.2632028]
[1726676777421,0.000821,59714.0,59713.0,0.0957358]
[1726676777885,0.000821,59714.0,59713.0,0.167467]
[1726676778103,0.000821,59714.0,59713.0,1.08446396]
[1726676778506,0.000821,59714.0,59713.0,0.73552896]
[1726676778738,0.000821,59714.0,59713.0,0.74752896]
[1726676779228,0.000821,59714.0,59713.0,1.07046396]
[1726676779482,0.000821,59714.0,59713.0,0.8505128]
[1726676779918,0.000821,59714.0,59713.0,1.1854478]
[1726676780139,0.000821,59714.0,59713.0,0.8505128]
[1726676780904,0.000821,59714.0,59713.0,0.61738584]
[1726676781137,0.000821,59714.0,59713.0,0.95232084]
[1726676781374,0.000821,59714.0,59713.0,0.61738584]
[1726676783080,0.000821,59714.0,59713.0,1.1854478]
[1726676783513,0.000821,59714.0,59713.0,1.5203828]
[1726676785039,0.000821,59714.0,59713.0,1.1854478]
[1726676785496,0.000821,59714.0,59713.0,0.95232084]
[1726676786143,0.000821,59714.0,59713.0,1.5203828]
[1726676786604,0.000821,59714.0,59713.0,1.1854478]
[1726676787666,0.01917458,59714.0,59713.0,1.1854478]
[1726676788554,0.01917458,59714.0,59713.0,0.28245084]
[1726676788769,0.01917458,59714.0,59713.0,0.513402]
[1726676789221,0.04853203,59714.0,59713.0,1.08146396]
[1726676789432,0.04853203,59714.0,59713.0,1.41639896]
[1726676790761,0.04853203,59714.0,59713.0,2.13978763]
[1726676791017,0.000821,59714.0,59713.0,2.57759763]
[1726676791232,0.000821,59714.0,59713.0,2.91253263]
[1726676791449,0.000821,59714.0,59713.0,2.91453263]
[1726676792125,0.000821,59714.0,59713.0,2.28118763]
[1726676792347,0.000821,59714.0,59713.0,2.26818763]
[1726676792565,0.01915881,59714.0,59713.0,2.28218763]
[1726676793035,0.000821,59714.0,59713.0,2.28218763]
[1726676793255,0.000821,59714.0,59713.0,2.28418763]
[1726676793468,0.000821,59714.0,59713.0,2.27018763]
[1726676793680,0.000821,59714.0,59713.0,2.28418763]
[1726676794070,0.000821,59714.0,59713.0,2.27018763]
[1726676794968,0.0008657,59727.0,59726.0,1.49644396]
[1726676794969,0.0007657,59727.0,59726.0,1.49644396]
[1726676795441,0.04827414,59727.0,59726.0,1.83130596]
[1726676795666,0.04827414,59727.0,59726.0,2.02435963]
[1726676795876,0.04827414,59727.0,59726.0,1.49644396]
[1726676796112,0.04827414,59727.0,59726.0,0.6549374]
[1726676796541,0.04827414,59727.0,59726.0,1.07028196]
[1726676796757,0.04827414,59727.0,59726.0,1.08428196]
[1726676796974,0.04827414,59727.0,59726.0,1.41914396]
[1726676797184,0.04827414,59727.0,59726.0,1.40514396]
[1726676797645,0.04827414,59727.0,59726.0,1.94129763]
[1726676797855,0.01903818,59727.0,59726.0,2.27615963]
[1726676798084,0.01903818,59727.0,59726.0,2.27415963]
[1726676798739,0.4755,59743.0,59742.0,0.83693]
[1726676798948,0.0038993,59745.0,59741.0,0.23312696]
[1726676798949,0.0038993,59745.0,59744.0,0.502141]
[1726676799162,0.0330426,59745.0,59744.0,0.9104288]
[1726676799677,0.0330426,59745.0,59744.0,1.2451898]
[1726676800117,0.0330426,59745.0,59744.0,1.5799508]
[1726676800118,0.0038993,59745.0,59744.0,1.5799508]
[1726676800330,0.0038993,59745.0,59744.0,1.6557508]
[1726676800991,0.0038993,59745.0,59744.0,1.6697508]
[1726676802530,0.0038993,59745.0,59744.0,1.86280447]
[1726676805420,0.0047193,59745.0,59744.0,1.6697508]
[1726676806051,0.0047193,59745.0,59744.0,1.82486461]
[1726676806273,0.001642,59746.0,59744.0,1.82486461]
[1726676806274,0.001642,59746.0,59745.0,1.171646]
[1726676806520,0.001642,59746.0,59745.0,1.7962873]
[1726676806758,0.001642,59746.0,59745.0,1.7982873]
[1726676807507,0.001642,59746.0,59745.0,1.26847763]
[1726676807744,0.001642,59746.0,59745.0,1.61723363]
[1726676807984,0.001642,59746.0,59745.0,1.28247763]
[1726676808228,0.001642,59746.0,59745.0,1.33190718]
[1726676808450,0.001642,59746.0,59745.0,1.84571685]
[1726676808657,0.001642,59746.0,59745.0,1.7962873]
[1726676809103,0.001642,59746.0,59745.0,1.84571685]
[1726676809345,0.001642,59746.0,59745.0,1.7962873]
[1726676809835,0.001642,59746.0,59745.0,1.7982873]
[1726676810087,0.001642,59746.0,59745.0,1.8102873]
[1726676810329,0.001642,59746.0,59745.0,1.7962873]
[1726676810834,0.001642,59746.0,59745.0,1.8102873]
[1726676811084,0.001642,59746.0,59745.0,1.7962873]
[1726676811369,0.001642,59746.0,59745.0,1.8102873]
[1726676811627,0.001642,59746.0,59745.0,1.8962873]
[1726676811861,0.001642,59746.0,59745.0,1.5315313]
[1726676812163,0.001642,59746.0,59745.0,1.5455313]
[1726676812385,0.001642,59746.0,59745.0,1.38247763]
[1726676812880,0.001642,59746.0,59745.0,0.27820963]
[1726676813135,0.001642,59746.0,59745.0,0.11083163]
[1726676813376,0.01992698,59746.0,59745.0,0.516134]
[1726676813603,0.001642,59746.0,59745.0,0.85089]
[1726676813814,0.00919437,59746.0,59745.0,0.85089]
[1726676814014,0.00919437,59746.0,59745.0,0.83689]
[1726676814223,0.001642,59746.0,59745.0,0.83689]
[1726676814435,0.001642,59746.0,59745.0,0.9680564]
[1726676814436,0.01992698,59746.0,59745.0,0.9680564]
[1726676814675,0.01992698,59746.0,59745.0,1.2888124]
[1726676815070,0.01992698,59746.0,59745.0,1.3028124]
[1726676815287,0.01992698,59746.0,59745.0,1.6375684]
[1726676815697,0.00082,59759.0,59758.0,0.167341]
[1726676815966,0.00082,59759.0,59758.0,0.67387191]
[1726676815967,0.00072,59759.0,59758.0,0.67387191]
[1726676816154,0.0038993,59763.0,59762.0,0.19733]
[1726676816365,0.0037993,59763.0,59762.0,1.52147748]
[1726676816573,0.0037993,59763.0,59762.0,1.95613748]
[1726676816993,0.0037993,59763.0,59762.0,1.95413748]
[1726676817205,0.0037993,59763.0,59762.0,1.99059541]
[1726676818046,0.0037993,59763.0,59762.0,1.54028297]
[1726676818260,0.0038993,59781.0,59762.0,1.54028297]
[1726676818261,0.0038993,59781.0,59770.0,0.334612]
[1726676818509,0.0038993,59781.0,59774.0,0.167295]
[1726676818510,0.167286,59778.0,59774.0,0.167295]
[1726676818716,0.04772799,59777.0,59774.0,0.167295]
[1726676818935,0.33033967,59778.0,59772.0,0.334603]
[1726676818936,0.04772799,59776.0,59775.0,0.2174828]
[1726676820449,0.01835692,59776.0,59775.0,1.2212468]
[1726676820670,0.0038993,59781.0,59780.0,0.50184]
[1726676820914,0.0222614,59781.0,59780.0,1.40347504]
[1726676821145,0.0222614,59781.0,59780.0,1.47045164]
[1726676822012,0.0222614,59781.0,59780.0,1.48045164]
[1726676822448,0.0222614,59781.0,59780.0,1.47045164]
[1726676822648,0.0222614,59781.0,59780.0,1.48445164]
[1726676823124,0.0038993,59781.0,59780.0,1.94901164]
[1726676823358,0.00082,59788.0,59786.0,1.170841]
[1726676823604,0.00072,59787.0,59786.0,1.91766981]
[1726676824234,0.00072,59787.0,59786.0,1.58314381]
[1726676824930,0.00072,59787.0,59786.0,1.59514381]
[1726676826224,0.00072,59787.0,59786.0,2.05966981]
[1726676826435,0.00072,59787.0,59786.0,1.72514381]
[1726676826650,0.00072,59787.0,59786.0,1.69514381]
[1726676826865,0.00072,59787.0,59786.0,1.53209014]
[1726676827499,0.01929085,59787.0,59786.0,1.09756414]
[1726676828581,0.01929085,59787.0,59786.0,0.8650491]
[1726676828807,0.04909517,59787.0,59786.0,0.0287341]
[1726676829031,0.04909517,59787.0,59786.0,0.012]
[1726676829245,0.24241941,59787.0,59786.0,0.012]
[1726676829681,0.05763169,59787.0,59786.0,0.012]
[1726676829895,0.07527636,59787.0,59786.0,0.74630404]
[1726676830189,0.06673984,59787.0,59786.0,1.12902207]
[1726676830605,0.06673984,59787.0,59786.0,0.79449607]
[1726676831038,0.06673984,59787.0,59786.0,0.06019203]
[1726676831242,0.24253636,59787.0,59786.0,0.007]
[1726676831477,0.57705636,59787.0,59786.0,0.007]
[1726676831694,1.40915003,59787.0,59786.0,0.007]
[1726676832130,1.07463003,59787.0,59786.0,0.007]
[1726676832803,0.23833003,59787.0,59786.0,0.007]
[1726676833208,0.07527636,59787.0,59786.0,0.007]
[1726676833426,0.00925652,59787.0,59786.0,0.0411548]
[1726676833661,0.19514203,59787.0,59786.0,0.0411548]
[1726676833873,0.57730749,59787.0,59786.0,0.0411548]
[1726676834093,0.07552749,59787.0,59786.0,0.2014178]
[1726676834513,0.07552749,59787.0,59786.0,0.0351548]
[1726676834943,0.07552749,59787.0,59786.0,0.0341548]
[1726676835177,0.07652749,59787.0,59786.0,0.008]
[1726676835394,0.07552749,59787.0,59784.0,0.167267]
[1726676835608,0.066373,59786.0,59781.0,0.334549]
[1726676835819,0.17641549,59787.0,59783.0,0.334543]
[1726676835820,0.066373,59785.0,59783.0,0.334543]
[1726676836031,0.066373,59784.0,59783.0,0.501814]
[1726676836245,0.07461649,59784.0,59783.0,0.59215775]
[1726676836654,0.07461649,59784.0,59783.0,0.92670075]
[1726676836871,0.0569351,59784.0,59783.0,0.92670075]
[1726676837089,0.00072,59787.0,59786.0,0.836315]
[1726676837303,0.00072,59787.0,59786.0,1.48337072]
[1726676837504,0.0195482,59787.0,59786.0,1.48337072]
[1726676837999,0.0195482,59787.0,59786.0,1.49037072]
[1726676838207,0.04972967,59787.0,59786.0,1.49037072]
[1726676838413,0.04972967,59787.0,59786.0,1.48337072]
[1726676839307,0.04972967,59787.0,59786.0,1.49137072]
[1726676839520,0.04972967,59787.0,59786.0,0.91632968]
[1726676839969,0.04972967,59787.0,59786.0,0.24727768]
[1726676840193,0.06769497,59787.0,59786.0,0.58180368]
[1726676840393,0.06769497,59787.0,59786.0,0.91632968]
[1726676840608,0.01872189,59787.0,59786.0,0.91632968]
[1726676840822,0.06789468,59787.0,59786.0,1.25085568]
[1726676841044,0.04989279,59787.0,59786.0,1.26185568]
[1726676841275,0.04989279,59787.0,59786.0,1.59638168]
[1726676841529,0.04989279,59787.0,59786.0,1.69518168]
[1726676842269,0.04989279,59787.0,59786.0,1.26185568]
[1726676843257,0.06785571,59787.0,59786.0,1.26185568]
[1726676843510,0.06785571,59787.0,59786.0,1.26349368]
[1726676843980,0.06774313,59787.0,59786.0,1.49586244]
[1726676844404,0.06774313,59787.0,59786.0,1.83038844]
[1726676845048,0.06774313,59787.0,59786.0,1.99344211]
[1726676845356,0.04978021,59787.0,59786.0,2.45796811]
[1726676845521,0.00082,59788.0,59787.0,1.20082]
[1726676845728,0.00082,59788.0,59787.0,1.55421742]
[1726676845935,0.00082,59788.0,59787.0,1.93805196]
[1726676846144,0.00082,59788.0,59787.0,1.9380547]
[1726676846358,0.00082,59788.0,59787.0,2.1127547]
[1726676846569,0.00082,59788.0,59787.0,2.5092747]
[1726676846790,0.00082,59788.0,59787.0,2.5232747]
[1726676847207,0.00082,59788.0,59787.0,2.52327012]
[1726676847630,0.00082,59788.0,59787.0,2.54765275]
[1726676847848,0.00082,59788.0,59787.0,2.21113275]
[1726676848069,0.00082,59788.0,59787.0,2.19713275]
[1726676848293,0.00082,59788.0,59787.0,2.17274781]
[1726676848497,0.00082,59788.0,59787.0,2.13743742]
[1726676848701,0.00072,59788.0,59787.0,2.12343742]
[1726676849147,0.00072,59788.0,59787.0,2.52128525]
[1726676849380,0.00072,59796.0,59795.0,1.300666]
[1726676849599,0.00072,59796.0,59795.0,2.16188925]
[1726676849818,0.00072,59796.0,59795.0,2.50705511]
[1726676850241,0.00072,59796.0,59795.0,2.58101537]
[1726676850505,0.00072,59796.0,59795.0,2.67881537]
[1726676851151,0.00072,59796.0,59795.0,2.60485511]
[1726676851366,0.00072,59796.0,59795.0,2.6541447]
[1726676851571,0.00072,59796.0,59795.0,2.60485511]
[1726676851785,0.00082,59806.0,59801.0,0.269221]
[1726676851786,0.0999,59802.0,59801.0,0.269221]
[1726676852005,0.0999,59802.0,59801.0,1.36944953]
[1726676852223,0.0999,59802.0,59801.0,1.70389153]
[1726676852456,0.0999,59802.0,59801.0,2.06833353]
[1726676853173,0.0999,59802.0,59801.0,2.40277553]
[1726676853393,0.00082,59806.0,59802.0,1.634962]
[1726676853614,0.00102,59819.0,59806.0,0.366414]
[1726676853834,0.00102,59819.0,59816.0,0.73390576]
[1726676854059,0.03181669,59817.0,59816.0,1.40262176]
[1726676854273,0.0140171,59817.0,59816.0,1.40262176]
[1726676854491,0.0140171,59817.0,59816.0,1.48263644]
[1726676854719,0.0140171,59817.0,59816.0,1.14827844]
[1726676855605,0.0140171,59817.0,59816.0,1.48263644]
[1726676855821,0.04372351,59817.0,59816.0,1.14827844]
[1726676856046,0.04372351,59817.0,59816.0,1.49663644]
[1726676856047,0.0616068,59817.0,59816.0,1.49663644]
[1726676856262,0.04372351,59817.0,59816.0,1.48263644]
[1726676856679,0.04372351,59817.0,59816.0,1.49663644]
[1726676856966,0.04372351,59817.0,59816.0,1.48263644]
[1726676857176,0.0140171,59817.0,59816.0,1.48263644]
[1726676857396,0.0140171,59817.0,59816.0,1.49663644]
[1726676857595,0.03256887,59817.0,59816.0,1.49663644]
[1726676857810,0.03256887,59817.0,59816.0,1.65969011]
[1726676858032,0.00102,59819.0,59818.0,0.965867]
[1726676858241,0.00102,59819.0,59818.0,1.83553677]
[1726676858896,0.00102,59819.0,59818.0,1.83353677]
[1726676859108,0.00102,59819.0,59818.0,1.83553677]
[1726676859757,0.00102,59819.0,59818.0,1.89553677]
[1726676859980,0.00102,59819.0,59818.0,1.90953677]
[1726676860184,0.00102,59819.0,59818.0,1.94866026]
[1726676860892,0.00102,59819.0,59818.0,1.94666026]
[1726676861104,0.00102,59819.0,59818.0,1.90753677]
[1726676863640,0.00082,59827.0,59826.0,1.170057]
[1726676863839,0.00082,59827.0,59826.0,1.45684741]
[1726676865969,0.00082,59827.0,59826.0,1.37915662]
[1726676866194,0.00082,59827.0,59826.0,1.39315662]
[1726676868666,0.00082,59827.0,59826.0,0.90417665]
[1726676869411,0.00082,59827.0,59826.0,1.39315662]
[1726676870140,0.0192746,59827.0,59826.0,1.39315662]
[1726676870385,0.01927461,59827.0,59826.0,1.39315662]
[1726676872813,0.01927461,59827.0,59826.0,1.37915662]
[1726676873270,0.01927461,59827.0,59826.0,1.39315662]
[1726676873705,0.01927461,59827.0,59826.0,1.37915662]
[1726676873917,0.01927461,59827.0,59826.0,1.05885462]
[1726676874141,0.01927461,59827.0,59826.0,0.90417665]
[1726676874359,0.03710786,59827.0,59826.0,1.39315662]
[1726676874782,0.03710786,59827.0,59826.0,1.37915662]
[1726676874992,0.03710786,59827.0,59826.0,1.04485462]
[1726676875212,0.04877206,59827.0,59826.0,1.04485462]
[1726676875428,0.06659737,59827.0,59826.0,1.04485462]
[1726676875854,0.06659737,59827.0,59826.0,1.37915662]
[1726676876247,0.06659737,59827.0,59826.0,1.04485462]
[1726676876465,0.06659737,59827.0,59826.0,1.05885462]
[1726676876677,0.06659737,59827.0,59826.0,1.04485462]
[1726676876892,0.06654521,59827.0,59826.0,1.04485462]
[1726676877116,0.06654521,59827.0,59826.0,1.05885462]
[1726676877787,0.06654521,59827.0,59826.0,1.04485462]
[1726676878212,0.06654521,59827.0,59826.0,1.39215662]
[1726676878427,0.06654521,59827.0,59826.0,1.05785462]
[1726676879522,0.06654521,59827.0,59826.0,1.04485462]
[1726676879734,0.06654521,59827.0,59826.0,1.37915662]
[1726676879955,0.06654521,59827.0,59826.0,1.05685462]
[1726676880408,0.06635707,59827.0,59826.0,1.05685462]
[1726676880844,0.00082,59827.0,59826.0,1.05685462]
[1726676881071,0.06635698,59827.0,59826.0,1.05685462]
[1726676881523,0.06636823,59827.0,59826.0,1.05685462]
[1726676881746,0.06636823,59827.0,59826.0,1.39115662]
[1726676882859,0.06636823,59827.0,59826.0,1.37915662]
[1726676883060,0.06625238,59827.0,59826.0,1.39315662]
[1726676883484,0.06625238,59827.0,59826.0,1.37915662]
[1726676883697,0.06625238,59827.0,59826.0,1.39315662]
[1726676885007,0.06625238,59827.0,59826.0,1.37915662]
[1726676886532,0.06625238,59827.0,59826.0,1.39315662]
[1726676886749,0.06625238,59827.0,59826.0,1.49315662]
[1726676886957,0.06625238,59827.0,59826.0,1.47915662]
[1726676887163,0.06625238,59827.0,59826.0,1.49315662]
[1726676888310,0.06611938,59827.0,59826.0,1.49315662]
[1726676888518,0.06611938,59827.0,59826.0,1.82745862]
[1726676889264,0.06611938,59827.0,59826.0,1.82945862]
[1726676889475,0.06611938,59827.0,59826.0,2.17911229]
[1726676889688,0.06611938,59827.0,59826.0,2.49941429]
[1726676889900,0.06611938,59827.0,59826.0,2.16311229]
[1726676889901,0.01839164,59827.0,59826.0,2.16311229]
[1726676890120,0.01839164,59827.0,59826.0,2.16511229]
[1726676890341,0.06543423,59827.0,59826.0,2.21435957]
[1726676890552,0.06543423,59827.0,59826.0,2.22835957]
[1726676890990,0.06543423,59827.0,59826.0,2.21435957]
[1726676891179,0.06543423,59827.0,59826.0,2.25298321]
[1726676891446,0.06543423,59827.0,59826.0,2.17911229]
[1726676891655,0.03649408,59827.0,59826.0,2.17911229]
[1726676892268,0.03649408,59827.0,59826.0,2.58728521]
[1726676892269,0.01890759,59827.0,59826.0,2.58728521]
[1726676892722,0.01890759,59827.0,59826.0,2.61190885]
[1726676892932,0.01890759,59827.0,59826.0,2.51341429]
[1726676893155,0.01890759,59827.0,59826.0,2.63653249]
[1726676893381,0.0027775,59830.0,59829.0,0.526286]
[1726676893619,0.0027775,59830.0,59829.0,1.60506935]
[1726676893826,0.0027775,59830.0,59829.0,1.93935535]
[1726676894266,0.0027775,59830.0,59829.0,2.39702244]
[1726676894503,0.0027775,59830.0,59829.0,2.06273644]
[1726676894711,0.0027775,59830.0,59829.0,1.93935535]
[1726676894921,0.0027775,59830.0,59829.0,2.39706212]
[1726676895344,0.0027775,59830.0,59829.0,2.27364135]
[1726676895601,0.0027775,59830.0,59829.0,2.39711415]
[1726676896074,0.0027775,59830.0,59829.0,2.39511415]
[1726676896278,0.0027775,59830.0,59829.0,2.00616446]
[1726676896492,0.0027775,59830.0,59829.0,2.01626802]
[1726676896708,0.0027775,59830.0,59829.0,1.91745891]
[1726676896914,0.0027775,59830.0,59829.0,1.90145891]
[1726676897381,0.0027775,59830.0,59829.0,2.06026802]
[1726676897629,0.0027775,59830.0,59829.0,1.96145891]
[1726676897886,0.0027775,59830.0,59829.0,1.94745891]
[1726676898073,0.0027775,59830.0,59829.0,2.06026802]
[1726676899491,0.0027775,59830.0,59829.0,1.94745891]
[1726676899696,0.0027775,59830.0,59829.0,2.04833152]
[1726676899927,0.0027775,59830.0,59829.0,2.04633152]
[1726676900136,0.0027775,59830.0,59829.0,2.06033152]
[1726676900348,0.0027775,59830.0,59829.0,2.04634918]
[1726676900558,0.0027775,59830.0,59829.0,2.04834918]
[1726676900774,0.0027775,59830.0,59829.0,2.06234918]
[1726676900996,0.0027775,59830.0,59829.0,1.98634918]
[1726676901221,0.0027775,59830.0,59829.0,1.39948768]
[1726676901409,0.0027775,59830.0,59829.0,1.41348768]
[1726676901410,0.02069742,59830.0,59829.0,1.41348768]
[1726676901918,0.02069742,59830.0,59829.0,1.44348768]
[1726676902131,0.02069742,59830.0,59829.0,1.41348768]
[1726676902340,0.02069742,59830.0,59829.0,1.36401568]
[1726676902757,0.02069742,59830.0,59829.0,1.35001568]
[1726676903192,0.02069742,59830.0,59829.0,1.36401568]
[1726676903403,0.02069742,59830.0,59829.0,1.45420509]
[1726676903619,0.02069742,59830.0,59829.0,1.42420509]
[1726676903830,0.02069742,59830.0,59829.0,1.42415993]
[1726676904275,0.02069742,59830.0,59829.0,1.43815993]
[1726676906245,0.02069742,59830.0,59829.0,1.36397052]
[1726676907394,0.02069742,59830.0,59829.0,0.348286]
[1726676907620,0.77755161,59830.0,59829.0,0.014]
[1726676907849,1.11183161,59830.0,59829.0,0.014]
[1726676908075,0.167168,59820.0,59813.0,0.15467797]
[1726676908302,0.18095411,59820.0,59817.0,0.167176]
[1726676908531,0.18095411,59820.0,59819.0,0.0185238]
[1726676908741,0.35759166,59820.0,59819.0,0.001642]
[1726676908957,0.02736999,59820.0,59819.0,0.503153]
[1726676909167,0.02736999,59820.0,59819.0,0.5534683]
[1726676909382,0.01790044,59820.0,59819.0,0.5534683]
[1726676910255,0.01790044,59820.0,59819.0,0.5604683]
[1726676910472,0.01790044,59820.0,59819.0,0.5534683]
[1726676910908,0.167155,59825.0,59821.0,0.167163]
[1726676911129,0.16305367,59824.0,59822.0,0.07141393]
[1726676911351,0.17252322,59824.0,59822.0,0.07141393]
[1726676911571,0.0273776,59824.0,59823.0,0.167159]
[1726676911783,0.0273776,59824.0,59823.0,0.05805499]
[1726676912009,0.19043127,59824.0,59819.0,0.001642]
[1726676912277,0.167166,59821.0,59819.0,0.001642]
[1726676912497,0.18096172,59820.0,59819.0,0.001642]
[1726676912932,0.19027094,59820.0,59819.0,0.21913]
[1726676913148,0.19127094,59820.0,59819.0,0.05996]
[1726676913623,0.35743894,59820.0,59819.0,0.05196]